fUSD/lending_fUSD_20250107
["ID","MTS","AMOUNT","RATE_DAILY","PERIOD"]
[347991999,1736262645995,-500.0,0.0001024,2]
[347992001,1736262646005,-537.9,0.0001024,2]
[347992004,1736262646016,-500.0,0.0001024,2]
[347992006,1736262646028,-500.0,0.0001024,2]
[347992008,1736262646039,-500.0,0.0001024,2]
[347992009,1736262646051,-901.06,0.0001024,2]
[347992012,1736262646070,-500.0,0.0001024,2]
[347992014,1736262646082,-336.74250086,0.0001024,2]
[347992016,1736262646094,-652.56,0.0001024,2]
[347992018,1736262646106,-824.46,0.0001024,2]
[347992020,1736262646118,-500.0,0.0001024,2]
[347992022,1736262646130,-500.0,0.0001024,2]
[347992024,1736262646141,-500.0,0.0001024,2]
[347992026,1736262646154,-500.0,0.0001024,2]
[347992028,1736262646167,-500.0,0.0001024,2]
[347992030,1736262646180,-500.0,0.0001024,2]
[347992032,1736262646196,-500.0,0.0001024,2]
[347992034,1736262646208,-500.0,0.0001024,2]
[347992036,1736262646220,-500.0,0.0001024,2]
[347992038,1736262646230,-500.0,0.0001024,2]
[347992040,1736262646241,-500.0,0.0001024,2]
[347992042,1736262646253,-604.2,0.0001024,2]
[347992045,1736262646266,-500.0,0.0001024,2]
[347992047,1736262646277,-500.0,0.0001024,2]
[347992048,1736262646287,-500.0,0.0001024,2]
[347992050,1736262646299,-500.0,0.0001024,2]
[347992053,1736262646320,-500.0,0.0001024,2]
[347992055,1736262646331,-500.0,0.0001024,2]
[347992057,1736262646342,-578.14,0.0001024,2]
[347992059,1736262646353,-940.14,0.0001024,2]
[347992061,1736262646364,-500.0,0.0001024,2]
[347992062,1736262646375,-500.0,0.0001024,2]
[347992064,1736262646385,-501.04,0.0001024,2]
[347992066,1736262646398,-500.0,0.0001024,2]
[347992069,1736262646409,-500.0,0.0001024,2]
[347992071,1736262646421,-505.89,0.0001024,2]
[347992072,1736262646431,-500.0,0.0001024,2]
[347992074,1736262646442,-500.0,0.0001024,2]
[347992075,1736262646453,-500.0,0.0001024,2]
[347992076,1736262646465,-500.0,0.0001024,2]
[347992077,1736262646477,-500.0,0.0001024,2]
[347992078,1736262646488,-500.0,0.0001024,2]
[347992079,1736262646500,-736.32,0.0001024,2]
[347992080,1736262646510,-552.87,0.0001024,2]
[347992081,1736262646521,-500.0,0.0001024,2]
[347992082,1736262646531,-500.0,0.0001024,2]
[347992083,1736262646541,-500.0,0.0001024,2]
[347992084,1736262646551,-500.0,0.0001024,2]
[347992086,1736262646566,-505.07,0.0001024,2]
[347992088,1736262646576,-500.0,0.0001024,2]
[347992090,1736262646586,-500.0,0.0001024,2]
[347992092,1736262646597,-500.0,0.0001024,2]
[347992094,1736262646608,-500.0,0.0001024,2]
[347992096,1736262646618,-500.0,0.0001024,2]
[347992098,1736262646628,-500.0,0.0001024,2]
[347992100,1736262646638,-500.0,0.0001024,2]
[347992102,1736262646649,-500.0,0.0001024,2]
[347992104,1736262646660,-846.86,0.0001024,2]
[347992106,1736262646671,-2061.41,0.0001024,2]
[347992108,1736262646680,-500.0,0.0001024,2]
[347992110,1736262646691,-682.55,0.0001024,2]
[347992112,1736262646701,-500.0,0.0001024,2]
[347992114,1736262646711,-500.0,0.0001024,2]
[347992116,1736262646721,-500.0,0.0001024,2]
[347992118,1736262646730,-500.0,0.0001024,2]
[347992120,1736262646740,-683.77,0.0001024,2]
[347992122,1736262646750,-500.0,0.0001024,2]
[347992124,1736262646760,-500.0,0.0001024,2]
[347992126,1736262646770,-500.0,0.0001024,2]
[347992128,1736262646780,-640.2,0.0001024,2]
[347992130,1736262646789,-500.0,0.0001024,2]
[347992132,1736262646799,-534.29,0.0001024,2]
[347992134,1736262646817,-1388.3,0.0001024,2]
[347992136,1736262646828,-1312.22,0.0001024,2]
[347992138,1736262646841,-819.24,0.0001024,2]
[347992140,1736262646851,-4216.35,0.0001024,2]
[347992142,1736262646861,-500.0,0.0001024,2]
[347992144,1736262646872,-500.0,0.0001024,2]
[347992146,1736262646882,-1928.38,0.0001024,2]
[347992148,1736262646892,-1764.27,0.0001024,2]
[347992150,1736262646902,-500.0,0.0001024,2]
[347992152,1736262646914,-2935.1,0.0001024,2]
[347992154,1736262646925,-500.0,0.0001024,2]
[347992156,1736262646935,-500.0,0.0001024,2]
[347992158,1736262646946,-500.0,0.0001024,2]
[347992160,1736262646956,-500.0,0.0001024,2]
[347992162,1736262646965,-500.0,0.0001024,2]
[347992164,1736262646975,-875.04,0.0001024,2]
[347992166,1736262646986,-800.66,0.0001024,2]
[347992168,1736262646996,-619.1,0.0001024,2]
[347992170,1736262647006,-2451.18819828,0.0001024,2]
[347992173,1736262647028,-3123.57180172,0.0001024,2]
[347992175,1736262647038,-500.0,0.0001024,2]
[347992177,1736262647048,-500.0,0.0001024,2]
[347992179,1736262647063,-500.0,0.0001024,2]
[347992181,1736262647073,-337.01227435,0.0001024,2]
[347992184,1736262647085,-473.17772565,0.0001024,2]
[347992186,1736262647095,-500.0,0.0001024,2]
[347992188,1736262647105,-500.0,0.0001024,2]
[347992190,1736262647114,-5306.22,0.0001024,2]
[347992192,1736262647126,-625.4,0.0001024,2]
[347992194,1736262647136,-500.0,0.0001024,2]
[347992196,1736262647146,-699.1,0.0001024,2]
[347992198,1736262647156,-500.0,0.0001024,2]
[347992200,1736262647166,-812.45,0.0001024,2]
[347992202,1736262647176,-517.57,0.0001024,2]
[347992204,1736262647186,-595.89,0.0001024,2]
[347992206,1736262647196,-532.04,0.0001024,2]
[347992207,1736262647206,-500.0,0.0001024,2]
[347992210,1736262647216,-500.0,0.0001024,2]
[347992212,1736262647226,-500.0,0.0001024,2]
[347992213,1736262647237,-1416.64,0.0001024,2]
[347992215,1736262647247,-913.13,0.0001024,2]
[347992217,1736262647257,-500.0,0.0001024,2]
[347992219,1736262647267,-982.41,0.0001024,2]
[347992222,1736262647277,-559.24,0.0001024,2]
[347992223,1736262647288,-500.0,0.0001024,2]
[347992225,1736262647297,-504.53,0.0001024,2]
[347992227,1736262647312,-740.91,0.0001024,2]
[347992229,1736262647323,-947.38,0.0001024,2]
[347992231,1736262647332,-3101.3,0.0001024,2]
[347992233,1736262647342,-567.13,0.0001024,2]
[347992235,1736262647352,-500.0,0.0001024,2]
[347992238,1736262647362,-547.23,0.0001024,2]
[347992240,1736262647372,-876.4,0.0001024,2]
[347992242,1736262647381,-500.0,0.0001024,2]
[347992244,1736262647391,-609.66,0.0001024,2]
[347992245,1736262647400,-524.12,0.0001024,2]
[347992247,1736262647410,-504.3,0.0001024,2]
[347992249,1736262647419,-1108.84,0.0001024,2]
[347992251,1736262647428,-500.0,0.0001024,2]
[347992253,1736262647438,-500.0,0.0001024,2]
[347992255,1736262647448,-812.27,0.0001024,2]
[347992257,1736262647457,-501.6,0.0001024,2]
[347992259,1736262647468,-500.0,0.0001024,2]
[347992261,1736262647478,-6774.01,0.0001024,2]
[347992264,1736262647488,-500.0,0.0001024,2]
[347992266,1736262647500,-893.01,0.0001024,2]
[347992268,1736262647509,-500.0,0.0001024,2]
[347992270,1736262647519,-847.04,0.0001024,2]
[347992272,1736262647529,-500.0,0.0001024,2]
[347992274,1736262647538,-500.0,0.0001024,2]
[347992276,1736262647547,-500.0,0.0001024,2]
[347992278,1736262647559,-500.0,0.0001024,2]
[347992280,1736262647569,-625.57,0.0001024,2]
[347992282,1736262647578,-1097.4,0.0001024,2]
[347992284,1736262647588,-500.0,0.0001024,2]
[347992286,1736262647597,-563.23,0.0001024,2]
[347992288,1736262647607,-615.57,0.0001024,2]
[347992290,1736262647616,-500.0,0.0001024,2]
[347992292,1736262647626,-500.0,0.0001024,2]
[347992294,1736262647635,-1408.96,0.0001024,2]
[347992296,1736262647645,-500.0,0.0001024,2]
[347992298,1736262647655,-1021.92,0.0001024,2]
[347992300,1736262647665,-535.29,0.0001024,2]
[347992302,1736262647675,-500.0,0.0001024,2]
[347992304,1736262647685,-588.69,0.0001024,2]
[347992306,1736262647695,-920.61,0.0001024,2]
[347992309,1736262647706,-500.0,0.0001024,2]
[347992310,1736262647716,-1477.09,0.0001024,2]
[347992312,1736262647725,-928.78,0.0001024,2]
[347992314,1736262647735,-611.48,0.0001024,2]
[347992316,1736262647745,-597.33,0.0001024,2]
[347992319,1736262647755,-627.19,0.0001024,2]
[347992320,1736262647765,-500.0,0.0001024,2]
[347992322,1736262647774,-500.0,0.0001024,2]
[347992325,1736262647784,-850.24,0.0001024,2]
[347992326,1736262647794,-500.0,0.0001024,2]
[347992327,1736262647809,-500.0,0.0001024,2]
[347992328,1736262647819,-676.0,0.0001024,2]
[347992329,1736262647831,-500.0,0.0001024,2]
[347992330,1736262647841,-1833.42,0.0001024,2]
[347992331,1736262647850,-500.0,0.0001024,2]
[347992332,1736262647860,-966.83,0.0001024,2]
[347992333,1736262647870,-500.0,0.0001024,2]
[347992335,1736262647883,-546.19,0.0001024,2]
[347992337,1736262647893,-585.7,0.0001024,2]
[347992338,1736262647904,-2074.96,0.0001024,2]
[347992341,1736262647915,-500.0,0.0001024,2]
[347992343,1736262647925,-518.31,0.0001024,2]
[347992345,1736262647935,-588.31,0.0001024,2]
[347992347,1736262647945,-500.0,0.0001024,2]
[347992349,1736262647955,-1505.25,0.0001024,2]
[347992351,1736262647964,-1855.72,0.0001024,2]
[347992352,1736262647973,-567.53,0.0001024,2]
[347992354,1736262647984,-1936.71,0.0001024,2]
[347992356,1736262647994,-500.0,0.0001024,2]
[347992358,1736262648003,-990.5,0.0001024,2]
[347992361,1736262648014,-536.84,0.0001024,2]
[347992362,1736262648024,-500.0,0.00010241,2]
[347992365,1736262648035,-500.0,0.00010241,2]
[347992386,1736262648255,-500.0,0.00010241,2]
[347992388,1736262648268,-500.0,0.00010241,2]
[347992391,1736262648278,-552.75,0.00010241,2]
[347992393,1736262648288,-546.88095057,0.00010241,2]
[347992395,1736262648297,-500.0,0.00010241,2]
[347992397,1736262648313,-500.0,0.00010241,2]
[347992399,1736262648323,-500.0,0.00010241,2]
[347992400,1736262648333,-500.0,0.00010241,2]
[347992403,1736262648343,-662.78,0.00010241,2]
[347992404,1736262648352,-500.0,0.00010241,2]
[347992406,1736262648362,-500.0,0.00010241,2]
[347992408,1736262648372,-500.0,0.00010241,2]
[347992410,1736262648383,-682.01,0.00010241,2]
[347992413,1736262648393,-500.0,0.00010241,2]
[347992415,1736262648403,-500.0,0.00010241,2]
[347992417,1736262648413,-500.0,0.00010241,2]
[347992419,1736262648423,-500.0,0.00010241,2]
[347992421,1736262648433,-969.32,0.00010241,2]
[347992423,1736262648442,-500.0,0.00010241,2]
[347992424,1736262648453,-500.0,0.00010241,2]
[347992427,1736262648463,-578.01,0.00010241,2]
[347992429,1736262648474,-958.61,0.00010241,2]
[347992430,1736262648485,-500.0,0.00010242,2]
[347992432,1736262648495,-1994.2,0.00010242,2]
[347992435,1736262648505,-1829.52,0.00010242,2]
[347992436,1736262648515,-2261.8,0.00010242,2]
[347992439,1736262648524,-6767.08,0.00010242,2]
[347992440,1736262648534,-2787.82,0.00010242,2]
[347992443,1736262648543,-2741.97,0.00010242,2]
[347992445,1736262648558,-2973.81,0.00010242,2]
[347992446,1736262648569,-500.0,0.00010242,2]
[347992449,1736262648579,-894.31,0.00010242,2]
[347992450,1736262648589,-4586.92,0.00010242,2]
[347992451,1736262648599,-1401.32,0.00010242,2]
[347992452,1736262648610,-881.1,0.00010242,2]
[347992453,1736262648621,-2528.5,0.00010242,2]
[347992454,1736262648632,-769.69,0.00010242,2]
[347992455,1736262648642,-1300.76,0.00010242,2]
[347992456,1736262648652,-10024.56,0.00010242,2]
[347992457,1736262648663,-2601.09,0.00010242,2]
[347992458,1736262648673,-5559.01,0.00010242,2]
[347992459,1736262648683,-2386.12,0.00010242,2]
[347992461,1736262648693,-1604.65,0.00010242,2]
[347992463,1736262648703,-2923.56,0.00010242,2]
[347992465,1736262648713,-6648.59,0.00010242,2]
[347992467,1736262648723,-1665.59,0.00010242,2]
[347992469,1736262648733,-500.0,0.00010242,2]
[347992471,1736262648743,-3246.3,0.00010242,2]
[347992473,1736262648753,-1337.5,0.00010242,2]
[347992475,1736262648763,-1338.74,0.00010242,2]
[347992477,1736262648772,-521.18,0.00010242,2]
[347992479,1736262648782,-5846.29,0.00010242,2]
[347992481,1736262648791,-1780.68,0.00010242,2]
[347992483,1736262648801,-500.0,0.00010242,2]
[347992485,1736262648816,-500.0,0.00010242,2]
[347992487,1736262648827,-2713.959764,0.00010242,2]
[347992489,1736262648842,-63.710236,0.00010242,2]
[347992491,1736262648852,-2668.87,0.00010242,2]
[347992493,1736262648862,-2018.16,0.00010242,2]
[347992495,1736262648873,-3313.36,0.00010242,2]
[347992497,1736262648883,-1456.5,0.00010242,2]
[347992499,1736262648894,-4406.75,0.00010243,2]
[347992501,1736262648904,-3434.44,0.00010243,2]
[347992503,1736262648914,-1707.34,0.00010243,2]
[347992505,1736262648924,-3888.42,0.00010243,2]
[347992507,1736262648934,-604.3,0.00010243,2]
[347992509,1736262648946,-1690.08,0.00010243,2]
[347992511,1736262648957,-2219.59,0.00010243,2]
[347992513,1736262648968,-151.738,0.00010245,2]
[347992515,1736262648979,-150.0,0.00010245,2]
[347992517,1736262648990,-150.0,0.00010245,2]
[347992519,1736262649001,-150.0,0.00010252,2]
[347992521,1736262649012,-250.0,0.00010254,2]
[347992524,1736262649023,-217.85,0.00010254,2]
[347992526,1736262649033,-150.339,0.00010254,2]
[347992528,1736262649043,-1267.0,0.00010254,2]
[347992529,1736262649054,-1125.906,0.00010254,2]
[347992531,1736262649069,-1860.0,0.00010254,2]
[347992534,1736262649080,-1257.586,0.00010254,2]
[347992536,1736262649091,-916.0,0.00010254,2]
[347992537,1736262649101,-3775.0,0.00010254,2]
[347992540,1736262649111,-819.0,0.00010254,2]
[347992541,1736262649122,-3718.0,0.00010254,2]
[347992543,1736262649132,-535.0,0.00010254,2]
[347992545,1736262649143,-150.0,0.0001026,2]
[347992547,1736262649154,-1173.0,0.0001026,2]
[347992550,1736262649166,-150.0,0.00010263,2]
[347992551,1736262649177,-150.0,0.00010305,2]
[347992553,1736262649188,-927.79,0.00010314,2]
[347992556,1736262649199,-2874.3,0.00010314,2]
[347992558,1736262649210,-1637.0,0.00010314,2]
[347992559,1736262649221,-1965.95,0.00010314,2]
[347992561,1736262649231,-588.06,0.00010319,2]
[347992563,1736262649242,-150.0,0.0001041,2]
[347992565,1736262649254,-150.0,0.00010428,2]
[347992567,1736262649264,-1000.0,0.00010431,2]
[347992569,1736262649274,-2439.64457329,0.00010476,2]
[347992571,1736262649284,-150.0,0.00010489,2]
[347992573,1736262649295,-4300.0,0.000105,3]
[347992575,1736262649310,-2524.39,0.00010512,2]
[347992577,1736262649321,-1913.75,0.00010512,2]
[347992579,1736262649332,-1640.33,0.00010512,2]
[347992581,1736262649342,-5646.88,0.00010512,2]
[347992583,1736262649353,-3766.32,0.00010512,2]
[347992585,1736262649363,-9218.37,0.00010512,2]
[347992587,1736262649375,-4993.43,0.00010512,2]
[347992589,1736262649386,-500.0,0.00010512,2]
[347992591,1736262649397,-1147.2,0.00010512,2]
[347992593,1736262649407,-3138.89,0.00010512,2]
[347992595,1736262649419,-7297.15,0.00010512,2]
[347992597,1736262649431,-1885.76,0.00010512,2]
[347992599,1736262649442,-862.95,0.00010512,2]
[347992601,1736262649453,-6308.87,0.00010512,2]
[347992603,1736262649466,-3655.87,0.00010512,2]
[347992605,1736262649478,-529.64,0.00010512,2]
[347992607,1736262649490,-500.0,0.00010512,2]
[347992609,1736262649500,-3564.03,0.00010512,2]
[347992611,1736262649511,-884.02,0.00010512,2]
[347992613,1736262649522,-2502.01,0.00010512,2]
[347992615,1736262649533,-771.61,0.00010512,2]
[347992617,1736262649544,-15000.0,0.00010512,2]
[347992619,1736262649556,-500.0,0.00010513,2]
[347992621,1736262649573,-2117.31,0.00010513,2]
[347992623,1736262649588,-1640.34,0.00010513,2]
[347992625,1736262649600,-848.9,0.00010513,2]
[347992627,1736262649611,-516.31,0.00010513,2]
[347992629,1736262649623,-500.0,0.00010513,2]
[347992631,1736262649634,-890.07,0.00010513,2]
[347992633,1736262649645,-553.96,0.00010513,2]
[347992635,1736262649656,-500.0,0.00010513,2]
[347992637,1736262649667,-1968.29,0.00010513,2]
[347992639,1736262649677,-500.0,0.00010513,2]
[347992641,1736262649688,-500.0,0.00010513,2]
[347992643,1736262649699,-2031.5,0.00010513,2]
[347992645,1736262649710,-815.38,0.00010513,2]
[347992647,1736262649720,-755.1,0.00010513,2]
[347992649,1736262649731,-500.0,0.00010513,2]
[347992651,1736262649742,-1407.37,0.00010513,2]
[347992653,1736262649754,-500.0,0.00010513,2]
[347992654,1736262649770,-941.38,0.00010513,2]
[347992657,1736262649783,-500.0,0.00010513,2]
[347992659,1736262649793,-639.93,0.00010513,2]
[347992661,1736262649805,-922.69,0.00010513,2]
[347992663,1736262649817,-560.94,0.00010513,2]
[347992665,1736262649829,-500.0,0.00010513,2]
[347992667,1736262649842,-500.0,0.00010513,2]
[347992669,1736262649854,-569.19,0.00010513,2]
[347992671,1736262649865,-590.44,0.00010513,2]
[347992673,1736262649883,-500.0,0.00010513,2]
[347992675,1736262649896,-763.06,0.00010513,2]
[347992677,1736262649908,-1409.42,0.00010513,2]
[347992679,1736262649919,-500.0,0.00010513,2]
[347992681,1736262649931,-544.01,0.00010513,2]
[347992683,1736262649943,-942.94,0.00010513,2]
[347992684,1736262649954,-500.0,0.00010513,2]
[347992686,1736262649965,-500.0,0.00010513,2]
[347992689,1736262649981,-500.0,0.00010513,2]
[347992691,1736262649992,-562.09,0.00010513,2]
[347992693,1736262650003,-1099.11,0.00010513,2]
[347992694,1736262650014,-582.68,0.00010513,2]
[347992696,1736262650026,-1458.4,0.00010513,2]
[347992698,1736262650038,-910.45,0.00010513,2]
[347992701,1736262650051,-1615.76,0.00010513,2]
[347992702,1736262650078,-924.05,0.00010513,2]
[347992705,1736262650092,-1168.85,0.00010513,2]
[347992707,1736262650105,-500.0,0.00010513,2]
[347992709,1736262650116,-1062.63,0.00010513,2]
[347992711,1736262650128,-500.0,0.00010513,2]
[347992713,1736262650140,-1426.18,0.00010513,2]
[347992715,1736262650153,-1649.02,0.00010513,2]
[347992717,1736262650165,-520.91,0.00010513,2]
[347992719,1736262650178,-500.0,0.00010513,2]
[347992721,1736262650191,-500.0,0.00010513,2]
[347992722,1736262650202,-926.0,0.00010513,2]
[347992725,1736262650214,-535.94,0.00010513,2]
[347992726,1736262650226,-363.07840505,0.00010513,2]
[347992729,1736262650239,-341.4788288,0.00010513,2]
[347992731,1736262650251,-500.0,0.00010513,2]
[347992733,1736262650263,-304.65038775,0.00010513,2]
[347992735,1736262650275,-725.21,0.00010513,2]
[347992736,1736262650287,-500.0,0.00010513,2]
[347992738,1736262650299,-500.0,0.00010513,2]
[347992741,1736262650310,-500.0,0.00010513,2]
[347992742,1736262650322,-1644.77,0.00010513,2]
[347992744,1736262650334,-1064.43,0.00010513,2]
[347992746,1736262650347,-500.0,0.00010513,2]
[347992748,1736262650359,-718.87,0.00010513,2]
[347992751,1736262650371,-500.0,0.00010513,2]
[347992753,1736262650383,-1075.72,0.00010513,2]
[347992754,1736262650398,-500.0,0.00010513,2]
[347992756,1736262650411,-564.1,0.00010513,2]
[347992758,1736262650422,-500.0,0.00010513,2]
[347992760,1736262650433,-618.25,0.00010513,2]
[347992762,1736262650444,-683.56,0.00010513,2]
[347992764,1736262650455,-500.0,0.00010513,2]
[347992766,1736262650469,-3.12856911,0.00010513,2]
[347992769,1736262650502,-990.0,0.00010513,2]
[347992772,1736262650526,-346.60143089,0.00010513,2]
[347992774,1736262650539,-623.18600323,0.00010513,2]
[347992776,1736262650554,-226.38399677,0.00010513,2]
[347992778,1736262650584,-500.0,0.00010513,2]
[347992780,1736262650596,-244.01600326,0.00010513,2]
[347992782,1736262650612,-255.98399674,0.00010513,2]
[347992784,1736262650623,-500.0,0.00010513,2]
[347992786,1736262650636,-872.25,0.00010513,2]
[347992788,1736262650647,-639.01,0.00010513,2]
[347992790,1736262650659,-895.49,0.00010513,2]
[347992792,1736262650670,-801.58,0.00010513,2]
[347992794,1736262650681,-1413.01,0.00010513,2]
[347992796,1736262650692,-1588.41,0.00010513,2]
[347992798,1736262650704,-1647.51,0.00010513,2]
[347992800,1736262650721,-500.0,0.00010513,2]
[347992801,1736262650734,-586.67,0.00010513,2]
[347992803,1736262650746,-500.0,0.00010513,2]
[347992805,1736262650759,-1565.49,0.00010513,2]
[347992808,1736262650771,-500.0,0.00010513,2]
[347992810,1736262650784,-1101.5,0.00010513,2]
[347992812,1736262650795,-662.35,0.00010513,2]
[347992813,1736262650806,-500.0,0.00010513,2]
[347992816,1736262650822,-500.0,0.00010513,2]
[347992818,1736262650837,-500.0,0.00010513,2]
[347992820,1736262650849,-783.84,0.00010513,2]
[347992822,1736262650860,-735.55,0.00010513,2]
[347992823,1736262650873,-500.0,0.00010513,2]
[347992824,1736262650884,-500.0,0.00010513,2]
[347992825,1736262650896,-2312.12,0.00010513,2]
[347992826,1736262650908,-704.7,0.00010513,2]
[347992827,1736262650919,-500.0,0.00010513,2]
[347992828,1736262650931,-645.492016,0.00010513,2]
[347992829,1736262650942,-786.86,0.00010513,2]
[347992830,1736262650954,-500.0,0.00010513,2]
[347992831,1736262650965,-1308.72,0.00010513,2]
[347992833,1736262650977,-500.0,0.00010513,2]
[347992835,1736262650989,-558.3,0.00010513,2]
[347992837,1736262651000,-706.01,0.00010513,2]
[347992839,1736262651012,-500.0,0.00010513,2]
[347992841,1736262651022,-500.0,0.00010513,2]
[347992859,1736262651246,-500.0,0.00010513,2]
[347992861,1736262651257,-516.04,0.00010513,2]
[347992863,1736262651269,-811.47,0.00010513,2]
[347992865,1736262651282,-511.46,0.00010513,2]
[347992867,1736262651294,-500.0,0.00010513,2]
[347992869,1736262651305,-865.69,0.00010513,2]
[347992871,1736262651315,-500.0,0.00010513,2]
[347992873,1736262651326,-500.0,0.00010513,2]
[347992875,1736262651340,-677.006499,0.00010513,2]
[347992894,1736262651564,-500.0,0.00010513,2]
[347992895,1736262651591,-801.01,0.00010513,2]
[347992897,1736262651602,-510.8,0.00010513,2]
[347992899,1736262651614,-690.28,0.00010513,2]
[347992901,1736262651627,-500.0,0.00010513,2]
[347992904,1736262651640,-961.28,0.00010513,2]
[347992905,1736262651651,-1877.25,0.00010513,2]
[347992908,1736262651665,-500.0,0.00010513,2]
[347992910,1736262651677,-564.06,0.00010513,2]
[347992912,1736262651689,-717.82,0.00010513,2]
[347992913,1736262651701,-500.0,0.00010513,2]
[347992915,1736262651712,-648.62,0.00010513,2]
[347992917,1736262651723,-6268.49,0.00010513,2]
[347992919,1736262651734,-934.29,0.00010513,2]
[347992921,1736262651745,-816.82,0.00010513,2]
[347992923,1736262651758,-876.26,0.00010513,2]
[347992925,1736262651770,-500.0,0.00010513,2]
[347992926,1736262651782,-710.35,0.00010513,2]
[347992928,1736262651793,-500.0,0.00010513,2]
[347992931,1736262651805,-500.0,0.00010513,2]
[347992933,1736262651816,-500.0,0.00010513,2]
[347992935,1736262651829,-729.98,0.00010513,2]
[347992936,1736262651843,-500.0,0.00010513,2]
[347992939,1736262651856,-1400.56,0.00010513,2]
[347992941,1736262651879,-1830.12,0.00010513,2]
[347992943,1736262651890,-500.0,0.00010513,2]
[347992945,1736262651901,-2212.76,0.00010513,2]
[347992947,1736262651912,-744.63,0.00010513,2]
[347992949,1736262651925,-652.37,0.00010513,2]
[347992951,1736262651936,-534.71,0.00010513,2]
[347992953,1736262651947,-500.0,0.00010513,2]
[347992955,1736262651959,-2286.31,0.00010513,2]
[347992957,1736262651970,-518.3,0.00010513,2]
[347992959,1736262651983,-1914.85,0.00010513,2]
[347992961,1736262651994,-500.0,0.00010513,2]
[347992963,1736262652005,-646.22,0.00010513,2]
[347992965,1736262652017,-500.0,0.00010513,2]
[347992967,1736262652029,-500.0,0.00010513,2]
[347992969,1736262652040,-982.11,0.00010513,2]
[347992971,1736262652050,-1623.91,0.00010513,2]
[347992973,1736262652065,-500.0,0.00010513,2]
[347992974,1736262652092,-500.0,0.00010513,2]
[347992977,1736262652105,-1471.95,0.00010513,2]
[347992979,1736262652117,-996.79,0.00010513,2]
[347992981,1736262652128,-901.87,0.00010513,2]
[347992983,1736262652140,-500.0,0.00010513,2]
[347992985,1736262652152,-1372.49,0.00010513,2]
[347992987,1736262652165,-1464.12,0.00010513,2]
[347992989,1736262652175,-504.47,0.00010513,2]
[347992991,1736262652190,-500.0,0.00010513,2]
[347992993,1736262652202,-595.29,0.00010513,2]
[347992995,1736262652213,-500.0,0.00010513,2]
[347992997,1736262652224,-626.19,0.00010513,2]
[347992999,1736262652236,-827.13,0.00010513,2]
[347993001,1736262652247,-1176.78,0.00010513,2]
[347993003,1736262652258,-596.4,0.00010513,2]
[347993005,1736262652271,-500.0,0.00010513,2]
[347993007,1736262652288,-500.0,0.00010513,2]
[347993009,1736262652300,-554.87,0.00010513,2]
[347993011,1736262652311,-632.63,0.00010513,2]
[347993013,1736262652321,-2207.57,0.00010513,2]
[347993015,1736262652332,-500.0,0.00010513,2]
[347993017,1736262652343,-1314.45,0.00010513,2]